bitfinex/quotes_ETHUSD_20251110
["timestamp","ask_amount","ask_price","bid_price","bid_amount"]
[1762733891247,4.60153183,3582.6,3581.2,0.001]
[1762733891248,3.05206142,3582.1,3581.2,2.79333458]
[1762733891448,0.26035327,3582.0,3581.2,2.79333458]
[1762733891641,0.4896,3581.7,3581.2,0.001]
[1762733892210,3.73837029,3581.7,3581.2,0.001]
[1762733892474,4.02683245,3581.7,3581.2,0.001]
[1762733892817,1.20675871,3581.7,3581.2,0.001]
[1762733893220,0.74995871,3581.7,3581.2,0.001]
[1762733893421,0.002,3582.1,3581.2,0.001]
[1762733893625,0.2603404,3582.0,3581.2,0.001]
[1762733893920,0.2603404,3582.0,3581.6,3.25352758]
[1762733893921,0.1392,3582.0,3581.6,3.25352758]
[1762733894121,0.1392,3582.0,3581.9,3.2607144]
[1762733894322,0.002,3582.1,3582.0,2.79173646]
[1762733894526,0.002,3582.1,3581.9,3.26069353]
[1762733894730,0.002,3582.1,3581.6,2.93217511]
[1762733894731,0.002,3582.1,3582.0,3.72113646]
[1762733895436,0.002,3582.1,3582.0,0.9294]
[1762733895650,0.002,3582.1,3582.0,3.72113646]
[1762733895818,0.002,3582.1,3582.0,4.98084846]
[1762733896019,0.002,3582.1,3582.0,5.52555246]
[1762733901876,0.002,3582.5,3582.4,3.19692874]
[1762733902075,0.002,3582.5,3582.4,3.66582874]
[1762733902385,0.4568,3584.3,3582.8,0.405504]
[1762733902634,0.6667,3584.9,3584.2,3.25892047]
[1762733902781,0.25986945,3584.8,3584.2,3.25892047]
[1762733902981,0.25986945,3584.8,3584.2,0.4689]
[1762733903195,0.25986945,3584.8,3584.2,0.49680022]
[1762733903429,0.6667,3584.9,3584.2,3.28682132]
[1762733903623,2.78969884,3584.7,3584.0,0.1847]
[1762733903815,2.78968344,3584.7,3584.0,0.1847]
[1762733904131,2.78970907,3584.7,3584.0,0.1847]
[1762733905399,2.99938064,3584.9,3583.2,1.444412]
[1762733905400,0.4896,3584.1,3583.2,1.444412]
[1762733905582,0.0606,3583.9,3583.0,1.259712]
[1762733905781,2.79040545,3583.8,3583.1,0.0383]
[1762733905988,2.98220545,3583.8,3583.1,0.0383]
[1762733906230,2.79041214,3583.7,3582.4,1.259712]
[1762733906445,2.79051628,3583.6,3582.8,1.259712]
[1762733906733,2.79051628,3583.6,3582.6,2.79125168]
[1762733906734,2.79061737,3583.5,3582.6,2.79125168]
[1762733906914,0.4568,3583.5,3582.5,4.51155432]
[1762733907230,0.1918,3583.8,3583.0,2.79090789]
[1762733907387,0.1918,3583.8,3582.9,2.79102437]
[1762733907587,0.6486,3583.8,3582.8,2.7911094]
[1762733907808,2.79046715,3583.7,3582.9,2.79102072]
[1762733908123,0.1918,3583.8,3582.6,3.25172786]
[1762733908283,2.981983,3584.0,3583.1,2.79084605]
[1762733908615,0.6486,3584.0,3583.3,2.79070041]
[1762733908825,0.6486,3584.0,3583.1,2.79084605]
[1762733908826,3.43879553,3584.0,3583.1,2.82911874]
[1762733909022,0.1918,3584.0,3583.1,0.0383]
[1762733909219,0.4568,3584.2,3583.4,2.79057857]
[1762733909386,0.4568,3584.2,3583.3,2.79072363]
[1762733909715,1.259712,3584.7,3583.1,0.0383]
[1762733909716,1.716512,3584.7,3583.5,2.79056788]
[1762733909917,3.04899047,3584.6,3583.8,2.79033399]
[1762733910131,1.716512,3584.7,3583.1,2.82914113]
[1762733910132,0.4568,3584.7,3583.6,0.4605]
[1762733910333,3.24643622,3584.7,3583.6,0.4605]
[1762733910521,2.78971335,3584.6,3583.6,0.4605]
[1762733910726,2.78977788,3584.6,3583.6,0.4605]
[1762733910927,0.4568,3584.7,3583.7,2.79035276]
[1762733911121,0.4568,3584.7,3583.6,0.4605]
[1762733911530,2.7895751,3584.8,3584.0,2.79016979]
[1762733911833,2.7895751,3584.8,3583.8,2.79033428]
[1762733911834,0.4568,3584.8,3583.8,0.001]
[1762733912035,0.4568,3584.8,3583.8,0.4917]
[1762733912236,0.2119,3584.9,3583.8,0.4917]
[1762733912441,0.3511,3584.9,3584.3,2.7899298]
[1762733912829,0.1612,3584.9,3584.3,2.78994503]
[1762733913033,0.022,3584.9,3584.3,0.4907]
[1762733913203,0.2176,3584.9,3584.4,0.1392]
[1762733913539,0.1392,3584.8,3584.3,2.78993925]
[1762733913702,0.1392,3584.8,3584.2,0.1392]
[1762733914728,2.9287764,3584.8,3584.2,0.1392]
[1762733914924,3.40929754,3584.8,3584.2,0.1392]
[1762733915248,0.1392,3584.5,3584.0,2.79013436]
[1762733915430,0.2176,3584.9,3584.0,0.4907]
[1762733915431,0.022,3584.9,3584.0,0.4907]
[1762733915759,0.1392,3584.8,3584.4,0.4584]
[1762733916109,0.1392,3584.8,3584.2,2.79002287]
[1762733916308,0.022,3584.9,3584.0,1.665216]
[1762733916543,0.022,3584.9,3584.5,2.78978937]
[1762733916752,0.022,3584.9,3584.6,0.02789711]
[1762733917121,0.022,3584.9,3584.4,0.1392]
[1762733917314,0.022,3584.9,3584.4,2.92901062]
[1762733917526,0.6981,3584.9,3584.4,0.1392]
[1762733917939,0.4504,3584.5,3584.4,0.1392]
[1762733918270,0.4504,3584.5,3583.8,0.001]
[1762733918479,3.72071888,3584.5,3583.8,0.001]
[1762733918779,2.78986866,3584.4,3583.8,0.02890334]
[1762733919170,0.2176,3584.9,3583.8,0.02890334]
[1762733919333,0.25917046,3584.8,3583.8,3.28197251]
[1762733919538,2.78979989,3584.5,3583.8,0.4917]
[1762733919750,2.78972106,3584.6,3583.8,3.2820104]
[1762733919975,3.2700597,3584.8,3583.8,0.4917]
[1762733920277,2.78978579,3584.6,3583.8,3.28202026]
[1762733920571,2.78968149,3584.7,3583.9,2.79020808]
[1762733920777,3.04924828,3584.6,3583.8,3.28202716]
[1762733920936,2.78970987,3584.7,3583.8,0.4917]
[1762733921270,3.04929575,3584.6,3583.8,3.28203425]
[1762733921466,0.2595289,3584.5,3583.8,3.28203425]
[1762733921875,0.2176,3584.9,3584.4,0.4584]
[1762733922073,0.25967389,3584.8,3584.5,0.4584]
[1762733922250,0.022,3584.9,3584.5,0.4584]
[1762733922440,0.2598654,3584.8,3584.5,0.4584]
[1762733922640,0.022,3584.9,3584.5,0.4584]
[1762733923571,0.26009781,3584.8,3584.5,3.24817587]
[1762733923740,0.022,3584.9,3584.8,0.4584]
[1762733924136,0.022,3584.9,3584.8,3.2479559]
[1762733924576,0.022,3584.9,3584.8,3.27585145]
[1762733924762,0.022,3584.9,3584.8,3.76655145]
[1762733924966,0.022,3584.9,3584.8,3.7386559]
[1762733925177,0.022,3584.9,3584.8,0.9491]
[1762733925380,0.022,3584.9,3584.8,3.7386559]
[1762733928064,0.022,3584.9,3584.8,3.8778559]
[1762733929074,0.022,3584.9,3584.8,5.57096745]
[1762733929269,0.022,3584.9,3584.8,5.5523139]
[1762733932158,0.022,3584.9,3584.8,5.58020945]
[1762733932159,1e-08,3584.9,3584.8,5.58020945]
[1762733932399,0.02,3585.9,3585.8,3.19428195]
[1762733932596,0.02,3586.9,3586.8,3.19350444]
[1762733932807,0.02,3587.9,3587.0,2.78778319]
[1762733932808,0.1392,3587.9,3587.0,2.78778319]
[1762733932974,0.1392,3587.9,3586.9,3.19340071]
[1762733932975,3.1799515,3587.8,3586.9,3.19340071]
[1762733933179,0.25997373,3587.7,3587.3,0.1392]
[1762733933372,4.80103183,3589.0,3587.3,2.78753797]
[1762733933597,4.80103183,3589.0,3586.8,2.96494559]
[1762733933598,2.78682715,3588.4,3587.5,2.7874497]
[1762733933872,2.78682715,3588.4,3587.4,0.1924]
[1762733933873,0.25962078,3588.3,3587.4,0.6628]
[1762733934103,0.25962078,3588.2,3587.4,0.6628]
[1762733934410,2.78714322,3588.0,3587.4,0.1924]
[1762733934590,2.78714322,3588.0,3587.2,0.1924]
[1762733934786,2.78700905,3588.1,3587.2,0.1924]
[1762733934988,0.25927306,3588.0,3586.8,0.177]
[1762733935200,0.25927306,3588.0,3585.8,0.1847]
[1762733935201,0.25927306,3587.9,3586.6,0.1924]
[1762733935398,1.259712,3588.4,3586.6,0.1924]
[1762733935399,2.78691265,3588.2,3586.7,0.02788078]
[1762733935613,0.4955,3588.3,3586.8,0.405504]
[1762733935614,0.25908499,3588.1,3586.8,0.405504]
[1762733935821,2.78716154,3587.9,3587.0,2.78783557]
[1762733936123,3.28239018,3588.3,3587.3,2.787555]
[1762733936326,2.78677564,3588.4,3587.5,2.78743986]
[1762733936480,0.25886847,3588.3,3587.6,2.78737542]
[1762733936678,0.4955,3588.8,3587.5,2.78740186]
[1762733936679,1.259712,3588.6,3587.5,2.78740186]
[1762733936885,0.25886719,3588.5,3587.5,2.78740186]
[1762733937192,2.78714557,3588.0,3587.2,0.1924]
[1762733937396,2.7870429,3588.1,3587.2,2.98003335]
[1762733937598,2.78708873,3588.0,3587.2,0.6628]
[1762733937916,2.78716554,3587.9,3587.2,0.6628]
[1762733938217,0.4955,3588.4,3587.2,0.1924]
[1762733938515,0.76896618,3589.9,3587.6,2.7873654]
[1762733938516,2.78668104,3588.5,3587.6,2.7873654]
[1762733938815,2.78676679,3588.4,3587.6,2.7873654]
[1762733939125,2.78653546,3588.7,3587.7,2.78728907]
[1762733939414,3.28195584,3588.8,3587.8,2.78716918]
[1762733939618,2.78684032,3588.3,3587.6,0.4704]
[1762733939913,0.4955,3588.7,3587.6,0.4704]
[1762733940302,2.78696317,3588.2,3587.6,0.4704]
[1762733940513,0.4955,3588.7,3587.6,0.4704]
[1762733940682,2.78658965,3588.7,3587.8,2.78716459]
[1762733941016,0.02,3588.9,3587.8,0.4704]
[1762733941218,0.02,3588.9,3587.9,0.4704]
[1762733941727,0.0998,3588.8,3587.9,0.4704]
[1762733941880,2.78654672,3588.7,3587.9,0.4704]
[1762733942080,0.5155,3588.9,3587.9,0.4704]
[1762733942081,0.02,3588.9,3587.9,0.4704]
[1762733942304,0.02,3588.9,3588.0,0.405504]
[1762733942477,0.02,3588.9,3588.3,2.78683474]
[1762733943008,0.02,3588.9,3588.3,3.23843474]
[1762733943206,0.02,3588.9,3588.1,0.198]
[1762733943382,0.02,3588.9,3588.8,0.4988]
[1762733943582,0.1198,3588.9,3588.8,0.1392]
[1762733943782,0.174,3588.9,3588.8,0.1392]
[1762733944005,2.78655243,3588.7,3588.1,0.198]
[1762733944203,2.78646694,3588.8,3588.4,0.1392]
[1762733944511,0.1198,3588.9,3588.4,0.1392]
[1762733944684,0.02,3588.9,3588.8,0.4988]
[1762733944881,0.02,3588.9,3588.8,0.1392]
[1762733945483,0.0742,3588.9,3588.7,0.1392]
[1762733946415,0.0742,3588.9,3588.8,0.4988]
[1762733946416,0.02,3588.9,3588.8,0.4988]
[1762733946818,0.02,3588.9,3588.8,3.73684672]
[1762733947005,0.02,3588.9,3588.8,4.14235072]
[1762733947317,0.02,3588.9,3588.8,5.40206272]
[1762733949790,0.02,3589.9,3589.8,0.405504]
[1762733949989,0.02,3589.9,3589.5,0.405504]
[1762733950508,0.02,3589.9,3588.9,0.198]
[1762733950509,0.02,3589.9,3589.0,0.4516]
[1762733950890,0.062,3589.1,3588.8,0.001]
[1762733951521,0.4909,3589.6,3588.8,0.001]
[1762733951718,2.78587819,3589.6,3589.0,0.4988]
[1762733951918,0.02,3589.9,3589.0,0.4988]
[1762733952123,0.02,3589.9,3589.1,0.6496]
[1762733952320,2.78584165,3589.6,3589.0,0.4988]
[1762733952518,3.30086227,3589.9,3589.0,0.4988]
[1762733952519,0.5152,3589.9,3589.0,0.4988]
[1762733952690,0.02,3589.9,3589.0,0.9504]
[1762733953227,0.02,3589.9,3588.8,3.19289644]
[1762733953228,2.78575535,3589.7,3588.8,3.19289644]
[1762733953391,0.5152,3589.9,3588.8,0.001]
[1762733953725,0.558,3588.9,3588.8,0.001]
[1762733954029,3.34436908,3588.9,3588.8,0.001]
[1762733954212,3.44286908,3588.9,3588.8,0.001]
[1762733956632,2.78591535,3589.5,3588.8,0.001]
[1762733956796,0.1392,3589.2,3588.8,0.001]
[1762733956991,0.4952,3589.7,3588.8,0.001]
[1762733957216,7.14166732,3589.8,3588.8,3.23904147]
[1762733957409,4.35597335,3589.8,3589.0,2.7862319]
[1762733957613,4.35597335,3589.8,3588.8,0.4526]
[1762733957926,4.85117335,3589.8,3588.8,0.4526]
[1762733958116,2.78574993,3589.7,3588.9,2.78636908]
[1762733958318,0.02,3589.9,3588.9,3.19187308]
[1762733958625,0.02,3589.9,3589.1,2.78618997]
[1762733958827,0.02,3589.9,3588.9,0.405504]
[1762733959125,3.53952672,3589.8,3589.0,0.009231]
[1762733959329,0.25881422,3589.7,3589.0,0.009231]
[1762733959495,2.7861149,3589.3,3589.0,0.009231]
[1762733959695,0.52330345,3589.7,3589.0,0.009231]
[1762733960003,2.7857225,3589.8,3589.0,0.009231]
[1762733960004,0.0542,3589.1,3589.0,0.009231]
[1762733960208,2.7861514,3589.2,3589.0,0.009231]
[1762733960727,0.4583,3589.1,3589.0,0.009231]
[1762733960928,2.87660359,3589.5,3589.0,0.009231]
[1762733961227,4.35597335,3589.8,3589.0,0.009231]
[1762733961429,0.4583,3589.1,3589.0,0.009231]
[1762733962114,2.78591465,3589.5,3589.0,0.009231]
[1762733962317,0.25936814,3589.4,3589.0,0.009231]
[1762733962517,0.02,3589.9,3589.0,0.009231]
[1762733962518,0.25936814,3589.3,3589.0,0.009231]
[1762733962709,0.25966635,3589.2,3589.0,0.009231]
[1762733962905,3.28124979,3589.4,3589.0,0.009231]
[1762733963106,0.25966536,3589.3,3589.0,0.009231]
[1762733963308,0.02,3589.9,3589.1,2.98421381]
[1762733963309,2.8056662,3589.9,3589.1,2.98421381]
[1762733963509,0.25974366,3589.8,3589.2,0.4988]
[1762733963712,0.25974366,3589.7,3589.3,2.78604471]
[1762733963907,0.25974366,3589.6,3589.2,3.28490956]
[1762733964109,0.25974366,3589.5,3589.2,0.4988]
[1762733964295,0.25974366,3589.4,3589.0,0.009231]
[1762733964521,2.78583313,3589.6,3589.0,0.009231]
[1762733964722,0.25978929,3589.5,3589.0,0.009231]
[1762733965028,0.25978929,3589.4,3589.0,0.009231]
[1762733965228,2.7859676,3589.5,3589.0,0.009231]
[1762733965546,0.25991985,3589.4,3589.0,0.009231]
[1762733965751,0.02,3589.9,3589.8,0.4988]
[1762733965903,0.02,3589.9,3589.8,3.28447051]
[1762733966105,0.02,3589.9,3589.8,0.4988]
[1762733966330,0.02,3589.9,3589.3,0.4516]
[1762733966570,0.02,3589.9,3589.5,1.259712]
[1762733966842,0.02,3589.9,3589.3,0.4516]
[1762733967141,0.25985853,3589.8,3589.5,0.1392]
[1762733967465,0.2117,3589.9,3589.5,0.1392]
[1762733967751,0.25993003,3589.8,3589.5,0.1392]
[1762733967941,0.2117,3589.9,3589.5,0.5908]
[1762733967942,0.02,3589.9,3589.5,0.5908]
[1762733968142,0.02,3589.9,3589.8,3.28447051]
[1762733968346,0.02,3589.9,3589.8,3.42367051]
[1762733968649,0.02,3589.9,3589.8,3.87527051]
[1762733969420,0.02,3589.9,3589.8,4.14157451]
[1762733969623,0.02,3589.9,3589.8,4.28077451]
[1762733969828,0.02,3589.9,3589.8,3.33037451]
[1762733970036,0.02,3589.9,3589.8,0.544704]
[1762733970279,0.02,3589.9,3589.8,0.1392]
[1762733970436,0.02,3589.9,3589.1,2.98414677]
[1762733970437,1.0206485,3589.9,3589.1,2.98414677]
[1762733970623,0.0009,3589.8,3589.5,0.1392]
[1762733971033,2.78657523,3589.8,3589.5,0.1392]
[1762733971240,0.4538,3589.6,3589.0,0.009231]
[1762733971442,0.4952,3589.7,3589.2,0.1392]
[1762733971644,0.26004019,3589.6,3589.2,0.1392]
[1762733971849,0.0552,3589.3,3589.0,0.1392]
[1762733972159,0.0316,3589.1,3588.8,0.001]
[1762733972340,0.1392,3589.4,3588.8,2.92659535]
[1762733972513,0.26011465,3589.3,3588.9,2.78636908]
[1762733972713,0.1392,3589.4,3588.9,2.78636908]
[1762733972922,0.26011606,3589.3,3588.9,2.78636908]
[1762733973143,0.1392,3589.4,3588.8,0.1402]
[1762733973346,0.26016286,3589.3,3589.0,2.92542987]
[1762733973543,0.1392,3589.6,3589.0,2.92542987]
[1762733973544,0.1392,3589.6,3589.1,2.78619441]
[1762733973744,0.26015621,3589.5,3589.1,2.78618612]
[1762733973945,0.26015621,3589.4,3589.2,2.78613263]
[1762733974176,0.26015621,3589.4,3589.0,2.92548844]
[1762733974177,0.1392,3589.6,3589.0,0.1392]
[1762733974340,0.26019235,3589.5,3589.1,2.98391381]
[1762733974544,0.2107,3589.9,3588.8,0.001]
[1762733974877,0.2601799,3589.8,3588.9,0.4563]
[1762733975063,0.2601799,3589.7,3588.9,0.4563]
[1762733975377,0.2601799,3589.6,3588.9,0.4563]
[1762733975543,0.2107,3589.9,3588.9,0.4563]
[1762733975544,0.2601799,3589.5,3588.9,0.4563]
[1762733975745,0.02,3589.9,3588.9,0.4563]
[1762733975967,0.26019286,3589.8,3589.7,2.78574811]
[1762733976145,0.0918,3589.0,3588.8,0.001]
[1762733976346,0.46340282,3588.9,3588.8,0.001]
[1762733977044,0.91980282,3588.9,3588.8,0.001]
[1762733977278,0.26030282,3588.9,3588.8,0.4835]
[1762733977479,0.669,3589.9,3588.8,0.9398]
[1762733977648,0.26022416,3589.8,3588.8,0.9398]
[1762733977844,0.26022122,3589.7,3589.3,2.78605297]
[1762733978044,0.26022122,3589.6,3589.4,2.78596784]
[1762733978286,5.29516842,3589.5,3587.2,2.50304956]
[1762733978487,5.29516842,3589.5,3587.1,0.02]
[1762733978488,0.2585,3587.6,3587.1,0.02]
[1762733978797,3.28478956,3587.2,3587.1,0.02]
[1762733978951,3.54498463,3587.2,3587.1,0.02]
[1762733979284,0.26003614,3587.2,3587.1,0.02]
[1762733979641,0.75263614,3587.2,3587.1,0.02]
[1762733980757,0.26003614,3587.2,3587.1,0.02]
[1762733982085,0.26003614,3587.2,3587.1,0.7002]
[1762733982297,2.78722336,3587.8,3587.1,0.02]
[1762733982452,0.25951472,3587.7,3587.1,0.02]
[1762733982652,0.25951472,3587.6,3587.1,0.02]
[1762733982878,0.25951472,3587.5,3587.1,0.02]
[1762733983072,0.4638,3587.8,3587.1,0.02]
[1762733983073,0.25951472,3587.4,3587.1,0.02]
[1762733983355,2.78731529,3587.7,3587.1,0.02]
[1762733983665,0.25941856,3587.6,3587.1,0.02]
[1762733983866,0.25941856,3587.5,3587.1,0.02]
[1762733984079,0.25941856,3587.4,3587.1,0.02]
[1762733984389,0.1392,3587.6,3587.1,0.02]
[1762733984585,0.25932719,3587.5,3587.1,0.2177]
[1762733984751,0.1732,3587.9,3587.2,0.1392]
[1762733984752,2.92643515,3587.8,3587.2,0.1392]
[1762733984951,0.25931568,3587.7,3587.2,0.1392]
[1762733985180,0.1392,3587.8,3587.2,2.92687737]
[1762733985386,7.14255232,3588.7,3587.6,2.78737874]
[1762733985387,0.4638,3588.5,3587.6,2.78737874]
[1762733985584,2.17703378,3589.7,3587.6,2.78737874]
[1762733985585,0.1392,3588.2,3587.6,0.1392]
[1762733985805,0.1392,3588.5,3588.1,2.78693653]
[1762733986085,2.9594965,3589.0,3588.2,2.78691265]
[1762733986086,0.1732,3589.0,3588.2,2.78691265]
[1762733986260,0.2591851,3588.9,3588.4,2.78675732]
[1762733986463,0.1392,3589.5,3588.9,0.1392]
[1762733986664,4.56117335,3589.9,3588.9,0.1392]
[1762733986665,0.25917168,3589.4,3588.9,0.1392]
[1762733986857,0.2052,3589.9,3589.1,2.92540169]
[1762733986858,0.1392,3589.7,3589.1,2.92540169]
[1762733987189,0.1392,3589.7,3589.2,2.78613618]
[1762733987355,0.1392,3589.7,3589.2,2.78612765]
[1762733987555,0.1392,3589.7,3589.1,0.3387]
[1762733988052,0.095,3589.2,3587.9,0.4687]
[1762733988376,0.7376098,3589.6,3587.7,1.505]
[1762733988377,2.78642402,3588.9,3588.1,0.1995]
[1762733988559,0.0045,3589.0,3588.1,0.1995]
[1762733988883,0.1732,3588.9,3588.1,0.1995]
[1762733989072,2.78652179,3588.8,3588.1,0.1995]
[1762733989274,2.78652179,3588.8,3588.0,2.98651357]
[1762733989275,0.02810345,3588.7,3588.0,0.1995]
[1762733989473,0.02810345,3588.7,3587.7,0.4687]
[1762733989474,2.78660201,3588.6,3587.8,2.78721455]
[1762733989675,0.454,3588.8,3587.7,0.1995]
[1762733989874,0.454,3588.8,3588.0,2.78705672]
[1762733990292,2.78645168,3588.8,3588.1,0.1995]
[1762733990494,2.78645168,3588.8,3588.1,2.78697461]
[1762733990662,2.95957905,3588.9,3588.2,2.7869116]
[1762733990990,0.01,3855.0,3588.8,0.4722]
[1762733990991,0.002,3589.8,3588.8,0.4722]
[1762733991163,1.713712,3589.7,3588.8,0.4722]
[1762733991488,2.78595747,3589.5,3588.7,2.78652161]
[1762733991792,3.23987958,3589.6,3588.4,0.405504]
[1762733991987,0.454,3589.6,3588.9,2.78630676]
[1762733992189,0.002,3589.8,3589.0,2.7862369]
[1762733992388,2.78574887,3589.7,3588.4,0.4687]
[1762733992559,2.78577269,3589.7,3589.0,2.7862875]
[1762733992760,0.454,3589.7,3589.0,2.7862875]
[1762733992958,3.23979989,3589.7,3589.0,2.7862875]
[1762733993195,0.454,3589.7,3588.7,2.78652265]
[1762733993490,0.454,3589.7,3589.0,2.78624732]
[1762733993790,0.454,3589.7,3589.1,2.786179]
[1762733993990,0.454,3589.7,3588.9,2.7863455]
[1762733994202,0.454,3589.7,3589.1,2.78617368]
[1762733994371,0.002,3589.8,3588.8,0.405504]
[1762733994576,0.002,3589.8,3589.7,2.78574811]
[1762733994991,0.002,3589.8,3589.7,3.72664811]
[1762733995193,0.002,3589.8,3589.6,0.1995]
[1762733995393,0.002,3589.8,3589.7,2.78574811]
[1762733995713,0.002,3589.8,3589.4,0.1995]
[1762733995879,0.002,3589.8,3589.4,0.6995]
[1762733996396,0.002,3589.8,3589.4,3.48547906]
[1762733996614,0.002,3589.8,3589.7,2.78574811]
[1762733996822,0.002,3589.8,3589.7,3.25794811]
[1762733996978,0.002,3589.8,3589.7,3.75450559]
[1762733997177,0.002,3589.8,3589.7,2.78574811]
[1762733997578,0.6743,3589.8,3589.4,3.28595777]
[1762733997784,0.1872,3589.8,3589.4,0.5]
[1762733997986,0.002,3589.8,3589.4,0.1392]
[1762733998307,0.002,3589.8,3589.1,0.1995]
[1762733998507,0.002,3589.8,3588.8,1.728412]
[1762733998508,0.002,3589.8,3588.8,0.4687]
[1762733999007,0.002,3589.8,3589.1,2.78621381]
[1762733999310,0.002,3589.8,3589.0,1.259712]
[1762733999606,0.002,3589.8,3588.9,2.78636908]
[1762733999607,0.002,3589.8,3589.1,0.6682]
[1762733999986,0.002,3589.8,3589.7,2.78574811]
[1762734000190,0.002,3589.8,3589.7,3.25794811]
[1762734000400,0.002,3589.8,3589.5,2.78586942]
[1762734000401,5.09217335,3589.8,3589.2,1.259712]
[1762734000601,0.002,3589.8,3589.1,0.1995]
[1762734001176,0.002,3589.8,3589.4,0.5]
[1762734001415,0.002,3589.8,3589.7,3.25794811]
[1762734001616,0.002,3589.8,3589.7,3.72664811]
[1762734001787,0.002,3589.8,3589.7,3.25794811]
[1762734001987,0.002,3589.8,3589.7,3.72664811]
[1762734003208,0.02,3590.9,3589.7,0.96875748]
[1762734003383,0.02,3590.9,3589.8,0.9436]
[1762734003582,0.02,3590.9,3590.2,1.259712]
[1762734003807,0.02,3590.9,3590.8,2.78489473]
[1762734004408,0.02,3590.9,3590.8,3.72849473]
[1762734007335,0.022,3590.9,3590.8,3.72849473]
[1762734008223,0.022,3590.9,3590.8,3.86769473]
[1762734008726,0.02,3591.9,3591.8,2.78411938]
[1762734008931,0.02,3591.9,3591.8,3.91081938]
[1762734009144,0.02,3591.9,3591.3,2.78449294]
[1762734009308,0.02,3591.9,3591.7,2.7841576]
[1762734009504,0.02,3591.9,3591.4,0.4798]
[1762734009705,0.02,3591.9,3591.5,2.78435194]
[1762734010010,0.02,3591.9,3591.4,0.4798]
[1762734010011,0.02,3591.9,3591.8,3.24791938]
[1762734010195,0.02,3591.9,3591.4,0.4798]
[1762734010396,0.02,3591.9,3591.6,2.78426598]
[1762734010725,0.02,3591.9,3591.8,2.78411938]
[1762734010932,0.02,3591.9,3591.8,3.24791938]
[1762734011228,0.02,3591.9,3591.8,3.75556057]
[1762734011416,0.02,3591.9,3591.8,3.72771938]
[1762734012228,0.02,3591.9,3591.8,3.75556057]
[1762734012229,1e-08,3591.9,3591.8,3.75556057]
[1762734012409,1e-08,3591.9,3591.8,6.89693538]
[1762734012805,1e-08,3591.9,3591.8,5.39293538]
[1762734013127,0.00300001,3592.9,3592.2,1.259712]
[1762734013429,0.00300001,3592.9,3592.8,3.43024446]
[1762734013836,0.00300001,3592.9,3592.8,3.91004446]
[1762734015723,0.00300001,3592.9,3592.8,5.6030939]
[1762734015925,0.00300001,3592.9,3592.8,5.57526046]
[1762734016339,1e-08,3592.9,3592.8,10.17501464]
[1762734016643,1e-08,3592.9,3592.8,11.6511812]
[1762734017233,1e-08,3592.9,3592.8,10.1471812]
[1762734017545,0.02,3594.9,3594.8,4.44701192]
[1762734017747,0.02,3594.9,3594.8,5.39061192]
[1762734018113,1e-08,3594.9,3594.8,5.58842987]
[1762734018351,0.02,3595.9,3595.8,2.7810223]
[1762734018561,0.02,3595.9,3594.9,0.885304]
[1762734018816,0.0772,3595.9,3595.8,0.1384]
[1762734019060,0.809,3595.9,3595.6,0.1384]
[1762734019216,0.9474,3595.9,3595.3,0.1384]
[1762734019558,0.9474,3595.9,3595.4,0.6]
[1762734019559,2.78119358,3595.6,3595.4,0.6]
[1762734019917,0.2156,3595.9,3595.4,0.6]
[1762734019918,0.02,3595.9,3595.4,0.6]
[1762734020140,0.2687,3595.8,3595.4,0.6]
[1762734020475,0.0772,3595.9,3595.1,0.1831]
[1762734020672,0.02,3595.9,3595.8,2.7810223]
[1762734020969,0.02,3595.9,3595.8,3.2448223]
[1762734021473,0.02,3595.9,3595.6,1.503]
[1762734021769,0.02,3595.9,3595.8,2.7810223]
[1762734022733,0.02,3595.9,3595.6,1.503]
[1762734022948,0.02,3595.9,3595.4,0.405504]
[1762734023151,0.02,3595.9,3595.8,2.7810223]
[1762734023353,0.02,3595.9,3595.8,3.27263252]
[1762734023560,0.02,3595.9,3595.8,3.2448223]
[1762734023927,0.02,3595.9,3595.8,3.7246223]
[1762734024130,0.02,3595.9,3595.6,1.503]
[1762734024333,0.02,3595.9,3595.7,0.02781099]
[1762734024528,0.02,3595.9,3595.8,3.8448223]
[1762734025063,0.8109,3595.9,3595.8,0.6]
[1762734025434,0.8109,3595.9,3594.9,0.001]
[1762734025637,0.0027,3595.0,3594.9,0.001]
[1762734026038,0.4595,3595.0,3594.9,0.001]
[1762734026236,3.24114116,3595.0,3594.9,0.001]
[1762734026467,0.4568,3595.4,3594.9,0.001]
[1762734026685,0.0792,3595.9,3594.9,0.001]
[1762734026844,0.0792,3595.9,3595.0,2.78164116]
[1762734027049,0.0792,3595.9,3595.2,2.78148642]
[1762734027247,0.022,3595.9,3595.3,0.02781409]
[1762734027446,0.022,3595.9,3595.0,2.78157838]
[1762734027447,0.022,3595.9,3595.7,2.78107164]
[1762734027652,0.022,3595.9,3595.4,2.78133148]
[1762734027855,0.022,3595.9,3595.3,0.4798]
[1762734028052,0.022,3595.9,3595.2,0.1831]
[1762734028053,0.0572,3595.8,3595.2,0.1831]
[1762734028248,0.0572,3595.8,3594.9,0.001]
[1762734028249,2.78117326,3595.7,3594.9,0.001]
[1762734028447,0.0027,3595.0,3594.9,0.001]
[1762734028734,0.022,3595.9,3595.7,0.6469]
[1762734028960,0.022,3595.9,3595.8,3.6503263]
[1762734029150,0.022,3595.9,3595.8,4.1301263]
[1762734029668,0.022,3595.9,3595.8,4.3246223]
[1762734029969,0.022,3595.9,3595.8,4.4630223]
[1762734030819,0.022,3595.9,3595.8,6.1282383]
[1762734031832,0.02,3596.9,3596.8,2.78024911]
[1762734031969,0.02,3596.9,3596.8,3.42714911]
[1762734032169,0.02,3596.9,3596.8,2.91864911]
[1762734032429,0.02,3596.9,3596.8,3.25084911]